bitfinex-derivatives/quotes_ETHF0:USTF0_20250918
["timestamp","ask_amount","ask_price","bid_price","bid_amount"]
[1758211359800,0.6312,4606.0,4605.9,0.7181]
[1758211359994,0.7139,4606.0,4605.9,0.7181]
[1758211360197,0.4112,4606.0,4605.9,0.7181]
[1758211361198,0.1994,4606.0,4605.9,0.7181]
[1758211361596,3.2078,4606.1,4605.9,0.7181]
[1758211361803,0.22,4606.2,4606.1,0.7259]
[1758211362103,3.8383,4606.6,4606.5,0.8455]
[1758211362303,4.93688972,4606.6,4606.5,0.8455]
[1758211363906,4.93688972,4606.6,4606.5,0.5164]
[1758211364107,4.93688972,4606.6,4606.5,0.8455]
[1758211365102,4.63418972,4606.6,4606.5,0.8455]
[1758211365702,4.93688972,4606.6,4606.5,0.8455]
[1758211367205,4.93688972,4606.6,4606.5,0.5164]
[1758211369111,0.4105,4606.4,4606.3,0.2299]
[1758211369314,0.96343427,4606.4,4606.3,0.2299]
[1758211369511,1.50908972,4606.4,4606.3,0.2299]
[1758211369708,1.50908972,4606.4,4606.3,0.0217]
[1758211369903,0.4105,4606.1,4606.0,3.6356]
[1758211370207,0.7132,4606.1,4605.7,0.3082]
[1758211370398,0.7132,4606.1,4605.6,0.22]
[1758211370603,0.1983,4605.7,4605.6,0.6377]
[1758211370805,0.1983,4605.7,4605.6,0.9459]
[1758211371311,0.1983,4605.7,4605.6,0.7259]
[1758211372210,0.22,4606.4,4605.6,0.7259]
[1758211372407,0.1983,4605.8,4605.7,0.5164]
[1758211372604,0.1983,4605.8,4605.7,0.2299]
[1758211372810,0.1983,4605.8,4605.7,0.4394]
[1758211373013,0.7132,4605.8,4605.7,0.2299]
[1758211373215,4.71847794,4605.8,4605.7,0.0217]
[1758211374008,4.93847794,4605.8,4605.7,0.0217]
[1758211375309,9.15559794,4605.8,4604.4,3.2078]
[1758211375516,0.7132,4604.7,4604.6,0.7259]
[1758211375718,0.4105,4604.7,4604.6,0.7259]
[1758211375910,0.1983,4604.7,4604.6,0.7259]
[1758211376217,0.3027,4605.1,4604.6,0.7259]
[1758211376419,0.1983,4605.1,4605.0,0.8455]
[1758211376617,0.99085662,4605.1,4605.0,0.8455]
[1758211376917,0.99085637,4605.1,4605.0,0.8455]
[1758211378106,0.22,4605.2,4605.0,0.5373]
[1758211378307,0.22,4605.2,4605.1,0.7173]
[1758211378520,3.2078,4605.8,4605.7,0.406]
[1758211378714,3.45323028,4605.8,4605.7,0.7173]
[1758211379017,3.65272826,4605.8,4605.7,0.7173]
[1758211379219,4.16242826,4605.8,4605.7,0.7173]
[1758211379517,4.16242826,4605.8,4605.7,0.3113]
[1758211381620,4.16242826,4605.8,4605.7,0.5171]
[1758211381833,0.95462826,4605.8,4605.7,0.5171]
[1758211382621,0.95462826,4605.8,4605.7,0.3113]
[1758211383227,0.7092,4605.7,4605.6,0.5171]
[1758211383421,0.95462826,4605.7,4605.6,0.5171]
[1758211385415,0.95461389,4605.7,4605.6,0.5171]
[1758211388326,0.95461389,4605.7,4605.6,0.3113]
[1758211388519,0.95461389,4605.7,4605.1,0.2878]
[1758211388827,0.7092,4605.7,4605.1,0.2878]
[1758211389222,0.4035,4605.2,4605.1,0.2878]
[1758211389428,0.7138,4605.2,4605.1,0.2878]
[1758211389723,1.17917887,4605.2,4604.8,0.0217]
[1758211389920,0.7138,4604.9,4604.8,0.0217]
[1758211390120,0.4035,4604.9,4604.8,0.7103]
[1758211390316,0.7138,4604.9,4604.8,0.7103]
[1758211391929,0.7138,4604.9,4604.8,0.6886]
[1758211392322,0.4035,4604.9,4604.8,0.6886]
[1758211393029,0.7138,4604.9,4604.8,0.6886]
[1758211394525,0.4035,4604.9,4604.8,0.6886]
[1758211396926,3.2078,4605.3,4605.1,0.4008]
[1758211397117,3.2078,4605.3,4605.0,0.1208]
[1758211397118,0.2084,4605.6,4605.5,0.8094]
[1758211397526,1.19239972,4605.6,4605.5,0.8094]
[1758211397825,1.50269972,4605.6,4605.5,0.8094]
[1758211398325,0.78889972,4605.6,4605.5,0.8094]
[1758211398531,0.5187,4606.2,4606.1,0.6886]
[1758211398820,0.9338,4606.2,4606.1,0.6886]
[1758211399028,0.9338,4606.2,4606.1,0.2878]
[1758211399226,0.2084,4605.7,4605.6,0.2878]
[1758211399529,0.2084,4605.7,4605.6,0.6886]
[1758211400834,0.3103,4606.1,4605.6,0.6886]
[1758211401034,0.7138,4606.1,4606.0,0.8094]
[1758211401639,0.22,4606.1,4606.0,0.5216]
[1758211401940,0.22,4606.1,4606.0,0.8094]
[1758211402132,0.4284,4606.1,4606.0,0.8094]
[1758211402535,0.9338,4606.1,4606.0,0.2878]
[1758211402834,0.3103,4606.0,4605.5,3.3286]
[1758211403036,0.4035,4605.7,4605.6,0.4967]
[1758211403238,0.7138,4605.7,4605.6,0.4967]
[1758211403735,0.7138,4605.7,4605.6,0.2878]
[1758211404237,0.7138,4605.7,4605.6,0.4967]
[1758211405942,0.4035,4605.7,4605.6,0.6886]
[1758211406747,0.2084,4605.7,4605.6,0.6886]
[1758211406945,3.3028,4606.5,4605.6,0.6886]
[1758211407151,0.9338,4606.4,4606.3,0.6886]
[1758211408248,0.9338,4606.4,4606.3,0.4967]
[1758211408450,0.7138,4606.4,4606.3,0.4967]
[1758211408747,0.9338,4606.4,4606.3,0.6886]
[1758211409850,0.7138,4606.4,4606.3,0.2878]
[1758211410147,0.7138,4606.4,4606.1,0.2878]
[1758211410344,0.24208192,4606.3,4606.1,0.2878]
[1758211410547,1.49752372,4606.2,4606.1,0.4967]
[1758211412245,1.49752372,4606.2,4605.5,0.1208]
[1758211412549,0.4035,4605.7,4605.6,0.6886]
[1758211412749,0.7138,4605.7,4605.6,0.6886]
[1758211412953,0.4035,4605.7,4605.6,0.6886]
[1758211413850,0.7138,4605.7,4605.6,0.6886]
[1758211414453,0.4035,4605.7,4605.6,0.6886]
[1758211415146,0.7138,4605.7,4605.6,0.6886]
[1758211416147,1.49753418,4605.7,4605.6,0.2878]
[1758211416353,1.49753418,4605.7,4605.1,0.2933]
[1758211416557,0.4154,4605.2,4605.1,0.6842]
[1758211417248,0.7171,4605.2,4605.1,0.4854]
[1758211417448,0.95921318,4605.2,4605.1,0.2933]
[1758211417756,1.50094742,4605.2,4605.1,0.2933]
[1758211418055,1.50094742,4605.2,4605.1,0.4854]
[1758211418250,1.50094742,4605.2,4604.6,0.2933]
[1758211418458,0.7171,4604.7,4604.6,0.2933]
[1758211418654,1.50094356,4604.7,4604.6,0.4854]
[1758211419152,1.72094356,4604.7,4604.6,0.4854]
[1758211419649,1.41924356,4604.7,4604.6,0.6842]
[1758211420852,3.2078,4605.5,4605.4,0.1921]
[1758211421152,3.2078,4605.5,4605.4,0.6842]
[1758211421547,3.4189,4605.5,4605.4,0.6842]
[1758211422952,0.2111,4605.5,4605.4,0.6842]
[1758211423146,3.2078,4606.1,4605.4,0.6842]
[1758211423351,0.45948183,4606.0,4604.9,0.63238]
[1758211423554,0.23948183,4605.9,4605.0,0.21713]
[1758211423956,0.23948183,4605.9,4605.1,0.21713]
[1758211424160,0.23948183,4605.9,4605.0,0.21714]
[1758211424659,0.23948183,4605.9,4605.1,0.21713]
[1758211424847,0.23948183,4605.9,4605.0,0.21714]
[1758211425252,0.23948183,4605.9,4605.1,0.21713]
[1758211425457,0.23948183,4605.9,4604.9,0.2417]
[1758211425458,0.23948183,4605.9,4605.0,0.21714]
[1758211426054,0.23948183,4605.9,4604.9,0.0217]
[1758211426253,0.23948183,4605.9,4605.0,0.21714]
[1758211426555,0.23948183,4605.9,4604.9,0.0217]
[1758211428560,0.3017,4605.8,4605.0,0.1236]
[1758211428756,0.23948183,4605.7,4605.0,0.1236]
[1758211429259,0.2111,4605.1,4605.0,0.5145]
[1758211429559,0.3017,4605.6,4605.0,0.5145]
[1758211431352,0.0951,4606.0,4605.0,0.5145]
[1758211431553,0.97743208,4605.9,4605.0,0.5145]
[1758211431758,0.23960208,4605.8,4605.0,0.5145]
[1758211431962,0.2111,4605.1,4605.0,0.5145]
[1758211434063,0.3017,4605.4,4605.0,0.5145]
[1758211434268,0.3177,4605.8,4605.0,0.5145]
[1758211434468,0.53871438,4605.7,4605.0,0.5145]
[1758211434659,0.53871438,4605.6,4605.0,0.5145]
[1758211434857,0.3177,4605.8,4605.0,0.5145]
[1758211435061,0.77832578,4605.7,4605.0,0.5145]
[1758211435262,0.53871357,4605.6,4605.0,0.5145]
[1758211435457,0.3177,4605.8,4605.0,0.5145]
[1758211435663,0.77832987,4605.7,4605.0,0.5145]
[1758211435861,0.53871618,4605.6,4605.0,0.5145]
[1758211436166,0.3177,4605.8,4605.0,0.5145]
[1758211436364,0.77833603,4605.7,4605.0,0.5145]
[1758211436559,0.53872234,4605.6,4605.0,0.5145]
[1758211436754,0.3177,4605.8,4605.0,0.5145]
[1758211436961,0.77833942,4605.7,4605.0,0.5145]
[1758211437164,0.53872235,4605.6,4605.0,0.5145]
[1758211437364,0.219,4605.9,4605.0,0.5145]
[1758211437568,0.3177,4605.7,4605.0,0.5145]
[1758211437765,0.53873261,4605.6,4605.0,0.5145]
[1758211437968,0.3177,4605.7,4605.0,0.5145]
[1758211438168,0.53873261,4605.6,4605.0,0.5145]
[1758211438371,0.3177,4605.7,4605.0,0.5145]
[1758211438569,0.53874956,4605.6,4605.0,0.5145]
[1758211438770,0.3177,4605.7,4605.0,0.5145]
[1758211438965,0.53874955,4605.6,4605.5,0.12]
[1758211439167,0.206,4605.6,4605.5,0.5262]
[1758211440372,0.7155,4605.6,4605.5,0.5262]
[1758211440966,1.25426862,4605.6,4605.5,0.5262]
[1758211441573,1.25426862,4605.6,4605.5,0.207]
[1758211442272,0.93656862,4605.6,4605.5,0.5262]
[1758211442467,1.25426862,4605.6,4605.5,0.5262]
[1758211442672,0.7155,4605.5,4605.4,3.2078]
[1758211442971,0.7155,4605.5,4605.4,3.4148]
[1758211445070,0.3978,4605.5,4605.4,3.614]
[1758211445369,0.219,4605.9,4605.8,0.4062]
[1758211445370,0.206,4605.9,4605.8,0.4062]
[1758211445673,0.2002,4606.2,4606.1,0.6936]
[1758211445873,0.73902378,4606.2,4606.1,0.6936]
[1758211446371,0.53882378,4606.2,4606.1,0.6936]
[1758211446673,0.6183,4606.5,4606.4,0.3974]
[1758211446871,1.46561433,4606.5,4606.4,0.6936]
[1758211447776,1.22598226,4606.5,4606.4,0.6936]
[1758211448076,0.93798226,4606.5,4606.4,0.6936]
[1758211448471,0.53868226,4606.5,4606.4,0.6936]
[1758211448976,0.9063,4607.1,4607.0,0.8142]
[1758211449170,1.68440945,4607.1,4607.0,0.8142]
[1758211449874,1.68440945,4607.1,4607.0,0.4931]
[1758211450076,1.68440945,4607.1,4607.0,0.2962]
[1758211450673,1.68440945,4607.1,4607.0,0.4931]
[1758211451775,0.3993,4606.5,4606.4,0.4931]
[1758211451975,0.6873,4606.5,4606.4,0.6936]
[1758211453472,0.6873,4606.5,4606.4,0.4931]
[1758211453672,0.6873,4606.5,4606.4,0.2962]
[1758211453971,0.6873,4606.5,4606.4,0.4931]
[1758211454270,0.3993,4606.5,4606.4,0.6936]
[1758211454470,0.2002,4606.5,4606.4,0.6936]
[1758211454672,0.2002,4606.6,4606.5,0.8142]
[1758211455471,0.219,4606.8,4606.7,0.3974]
[1758211455672,0.95593615,4606.8,4606.7,0.6936]
[1758211455872,1.19960613,4606.8,4606.7,0.6936]
[1758211456979,1.68670613,4606.8,4606.7,0.6936]
[1758211458378,1.39870613,4606.8,4606.7,0.6936]
[1758211458773,1.68670613,4606.8,4606.7,0.4931]
[1758211458980,1.68670613,4606.8,4606.7,0.2962]
[1758211459481,1.68670613,4606.8,4606.7,0.6936]
[1758211460076,1.39870613,4606.8,4606.7,0.6936]
[1758211461281,1.68670613,4606.8,4606.7,0.6936]
[1758211461580,1.39870613,4606.8,4606.7,0.6936]
[1758211461979,1.68670613,4606.8,4606.7,0.6936]
[1758211462383,1.39870613,4606.8,4606.7,0.6936]
[1758211463071,0.4192,4606.8,4606.7,0.6936]
[1758211463276,0.2002,4606.8,4606.7,0.6936]
[1758211463784,0.3993,4606.8,4606.7,0.6936]
[1758211463986,0.2002,4607.1,4607.0,0.1206]
[1758211464185,1.17937162,4607.1,4607.0,0.518]
[1758211464483,0.507,4607.2,4607.0,0.518]
[1758211464484,3.408,4607.6,4607.5,0.518]
[1758211464676,3.408,4607.6,4607.5,0.8142]
[1758211465078,0.2002,4607.6,4607.5,0.8142]
[1758211466185,0.507,4608.0,4607.5,0.8142]
[1758211466381,0.219,4608.0,4607.6,0.2962]
[1758211466589,0.9063,4608.0,4607.9,0.6936]
[1758211466885,1.0014,4608.0,4607.6,0.2962]
[1758211467285,0.4871,4607.9,4607.8,0.1969]
[1758211467475,0.6873,4607.9,4607.8,0.4931]
[1758211468177,0.3993,4607.9,4607.8,0.6936]
[1758211468375,0.6873,4607.9,4607.8,0.6936]
[1758211469479,0.2002,4607.9,4607.8,0.6936]
[1758211470581,0.219,4607.9,4607.8,0.6936]
[1758211470989,3.8951,4608.6,4608.5,0.518]
[1758211471184,3.8951,4608.6,4608.5,0.8142]
[1758211471885,3.408,4608.6,4608.5,0.8142]
[1758211472088,3.2078,4608.6,4608.5,0.8142]
[1758211472286,0.219,4608.7,4608.5,0.518]
[1758211472487,0.219,4608.7,4608.6,0.6936]
[1758211472689,0.4192,4608.7,4608.6,0.6936]
[1758211472988,0.6183,4608.7,4608.6,0.6936]
[1758211474788,0.4192,4608.7,4608.6,0.6936]
[1758211476280,0.6183,4608.7,4608.6,0.6936]
[1758211476792,0.9195,4608.7,4608.4,0.315]
[1758211477289,3.2078,4609.1,4608.7,0.0805]
[1758211477489,0.9916915,4609.0,4608.8,0.2934]
[1758211477690,0.219,4609.0,4608.8,0.2934]
[1758211477983,0.219,4609.0,4608.8,0.1998]
[1758211478184,0.219,4609.0,4608.9,0.2934]
[1758211478390,0.9916414,4609.0,4608.9,0.2934]
[1758211479690,0.7518732,4609.0,4608.9,0.2934]
[1758211480193,0.219,4609.0,4608.9,0.4932]
[1758211481195,0.219,4609.0,4608.9,0.7034]
[1758211481395,3.4268,4609.0,4608.9,0.7034]
[1758211486297,3.95767829,4609.0,4608.9,0.7034]
[1758211487202,4.19366348,4609.0,4608.9,0.7034]
[1758211487596,3.73867829,4609.0,4608.9,0.7034]
[1758211487899,3.95775203,4609.0,4608.9,0.7034]
[1758211488294,4.19378536,4609.0,4608.9,0.7034]
[1758211488693,0.98598536,4609.0,4608.9,0.7034]
[1758211488897,0.219,4609.0,4608.9,0.7034]
[1758211489092,0.219,4609.0,4608.9,0.2934]
[1758211489296,0.219,4609.0,4608.9,0.4932]
[1758211490800,3.4268,4609.0,4608.9,0.4932]
[1758211492099,3.66308121,4609.0,4608.9,0.4932]
[1758211492295,4.19470695,4609.0,4608.9,0.4932]
[1758211496501,4.19470695,4609.0,4608.9,0.2934]
[1758211497692,4.19470695,4609.0,4608.9,0.4947]
[1758211497892,4.19470695,4609.0,4608.9,0.2934]
[1758211498090,8.41167696,4609.0,4608.5,0.12]
[1758211498290,0.98488695,4608.9,4608.5,0.12]
[1758211498499,0.98690695,4608.8,4608.4,0.0216]
[1758211498699,3.2078,4608.5,4608.4,0.3349]
[1758211498894,4.19470695,4608.5,4608.4,0.3133]
[1758211499990,4.19470695,4608.5,4608.4,0.7117]
[1758211501703,4.19470695,4608.5,4608.4,0.3133]
[1758211502499,4.19470695,4608.5,4608.4,0.5146]
[1758211502699,4.19470695,4608.5,4608.4,0.7117]
[1758211503301,3.97631067,4608.5,4608.4,0.7117]
[1758211503500,0.98751067,4608.5,4608.4,0.7117]
[1758211503910,0.98751067,4608.5,4608.4,0.5146]
[1758211504104,0.98751067,4608.5,4608.4,0.7117]
[1758211504809,0.89791067,4608.5,4608.4,0.7117]
[1758211505610,0.2,4608.6,4608.5,0.8206]
[1758211505811,0.2,4608.8,4608.7,0.3926]
[1758211506012,0.219,4608.8,4608.7,0.6994]
[1758211506604,0.45584215,4608.8,4608.7,0.6994]
[1758211507109,0.219,4608.8,4608.7,0.6994]
[1758211509309,3.6578,4609.4,4609.3,0.5065]
[1758211509514,4.11358517,4609.4,4609.3,0.5065]
[1758211511811,4.11358517,4609.4,4609.3,0.3068]
[1758211512002,4.11358517,4609.4,4609.1,0.3068]
[1758211512003,8.11358517,4609.4,4609.1,0.3068]
[1758211512206,0.23678517,4609.3,4609.1,0.3068]
[1758211512708,0.45374517,4609.3,4608.6,0.3068]
[1758211512909,3.2078,4608.7,4608.6,0.3068]
[1758211513113,3.66358517,4608.7,4608.6,0.3068]
[1758211513311,3.66358517,4608.7,4608.6,0.6994]
[1758211514712,3.44458517,4608.7,4608.6,0.6994]
[1758211515009,3.66358517,4608.7,4608.6,0.6994]
[1758211515407,0.23678517,4608.7,4608.6,0.6994]
[1758211515612,0.219,4608.9,4608.7,0.3068]
[1758211515813,0.219,4608.9,4608.8,0.6994]
[1758211517510,3.6578,4609.4,4608.8,0.6994]
[1758211517816,0.98795422,4609.3,4609.2,0.6994]
[1758211519810,0.76895422,4609.3,4609.2,0.5065]
[1758211520011,0.98795422,4609.3,4609.2,0.5065]
[1758211532418,0.98795422,4609.3,4609.2,0.6994]
[1758211533122,0.98795422,4609.3,4609.2,0.5065]
[1758211533421,5.20491422,4609.3,4609.0,0.1428]
[1758211533624,0.76895422,4609.2,4609.1,0.3068]
[1758211533924,41.78795422,4609.2,4609.1,0.3068]
[1758211535217,45.78795422,4609.2,4609.0,0.1428]
[1758211535423,0.76895422,4609.1,4609.0,0.4497]
[1758211535824,0.76895422,4609.1,4609.0,0.4281]
[1758211536121,0.76895422,4609.1,4609.0,0.6305]
[1758211536319,0.76895422,4609.1,4609.0,0.8353]
[1758211537927,0.76895422,4609.1,4609.0,0.4281]
[1758211538327,0.76895422,4609.1,4609.0,0.6305]
[1758211538828,0.76895422,4609.1,4609.0,0.4281]
[1758211540828,4.76895422,4609.1,4608.5,0.1212]
[1758211541019,3.2078,4608.6,4608.5,0.4281]
[1758211541222,4.19575422,4608.6,4608.5,0.4281]
[1758211541424,4.19575422,4608.6,4608.5,0.6305]
[1758211541628,3.97675422,4608.6,4608.5,0.8353]
[1758211541827,4.19575422,4608.6,4608.5,0.8353]
[1758211552046,0.53186546,4608.6,4608.5,4.8353]
[1758211552251,3.2078,4609.3,4609.2,0.7141]
[1758211552442,4.19718081,4609.3,4609.2,0.7141]
[1758211552842,4.19718081,4609.3,4609.2,0.3069]
[1758211553451,4.19719564,4609.3,4609.2,0.3069]
[1758211553950,4.19719564,4609.3,4609.0,0.4303]
[1758211554153,0.77039564,4609.2,4608.5,0.1212]
[1758211554343,3.2078,4608.7,4608.6,0.3069]
[1758211554544,4.19719564,4608.7,4608.6,0.3069]
[1758211555049,4.19719564,4608.7,4608.6,0.7141]
[1758211557149,4.19719564,4608.7,4608.6,0.3069]
[1758211557447,4.19719564,4608.7,4608.5,0.1212]
[1758211557646,4.98738565,4608.6,4607.8,0.3006]
[1758211557953,4.98738565,4608.6,4607.6,0.3006]
[1758211557954,3.2078,4607.9,4607.6,0.3006]
[1758211558251,0.98939564,4607.8,4607.6,0.3006]
[1758211558447,0.77039564,4607.7,4607.6,0.3006]
[1758211560352,0.77039564,4607.7,4607.6,0.6917]
[1758211560550,0.98939564,4607.7,4607.6,0.6917]
[1758211561452,0.219,4607.7,4607.6,0.6917]
[1758211562848,0.7500728,4607.7,4607.6,0.6917]
[1758211563157,0.98879067,4607.7,4607.6,0.6917]
[1758211564252,0.7500728,4607.7,4607.6,0.6917]
[1758211564447,0.219,4607.7,4607.6,0.6917]
[1758211565255,3.2078,4607.9,4607.6,0.6917]
[1758211565555,1.95340226,4609.8,4607.6,0.6917]
[1758211565556,3.2078,4608.7,4608.6,0.7238]
[1758211565761,4.19628653,4608.7,4608.6,0.7238]
[1758211567152,3.66543129,4608.7,4608.6,0.7238]
[1758211567353,3.4268,4608.7,4608.6,0.7238]
[1758211567653,3.95757192,4608.7,4608.6,0.7238]
[1758211567856,0.219,4608.7,4608.6,0.7238]
[1758211568560,35.163,4609.8,4609.3,0.197]
[1758211568765,0.90757684,4609.4,4609.3,0.5124]
[1758211569061,1.43829537,4609.4,4609.3,0.5124]
[1758211570657,8.86304538,4609.4,4607.4,0.3154]
[1758211570858,3.2078,4608.0,4607.4,0.3154]
[1758211571051,41.78929537,4607.9,4607.6,0.3154]
[1758211571363,0.76929537,4607.8,4607.0,0.1252]
[1758211571658,0.98704793,4607.7,4607.6,0.3154]
[1758211574261,0.98704793,4607.7,4607.6,0.5124]
[1758211574760,0.98704793,4607.7,4607.6,0.3154]
[1758211575662,0.98704793,4607.7,4607.2,0.3154]
[1758211575860,0.76704793,4607.6,4607.5,0.436]
[1758211576155,0.2363294,4607.6,4607.5,0.436]
[1758211577250,0.76648749,4607.6,4607.5,0.436]
[1758211577455,0.2363294,4607.6,4607.5,0.436]
[1758211577656,0.76646457,4607.6,4607.5,0.633]
[1758211578264,0.76646457,4607.6,4607.5,0.436]
[1758211578562,0.76646457,4607.6,4607.5,0.8444]
[1758211579758,0.76617927,4607.6,4607.5,0.8444]
[1758211579958,0.98617927,4607.6,4607.5,0.8444]
[1758211580761,0.22,4607.6,4607.5,0.8444]
[1758211583563,0.75007354,4607.6,4607.5,0.8444]
[1758211583867,0.22,4607.6,4607.5,0.8444]
[1758211584964,3.2078,4608.1,4607.5,0.8444]
[1758211585164,0.98599738,4608.0,4607.9,0.4084]
[1758211585367,0.98599738,4608.0,4607.9,0.7238]
[1758211587065,0.98599738,4608.0,4607.9,0.3154]
[1758211587262,0.98599738,4608.0,4607.9,0.5124]
[1758211587669,0.98599738,4608.0,4607.9,0.7238]
[1758211588361,0.76599738,4608.0,4607.9,0.7238]
[1758211588558,0.98599738,4608.0,4607.9,0.7238]
[1758211588763,0.22,4608.0,4607.9,0.7238]
[1758211590176,3.2078,4609.1,4609.0,0.849]
[1758211590469,4.19405924,4609.1,4609.0,0.849]
[1758211591762,3.97405924,4609.1,4609.0,0.849]
[1758211591967,4.19405924,4609.1,4609.0,0.849]
[1758211594165,4.19405924,4609.1,4609.0,0.6376]
[1758211594562,8.19405924,4609.1,4608.5,0.4406]
[1758211594769,0.76625924,4609.0,4608.5,0.1252]
[1758211594962,0.76625924,4608.9,4608.6,0.3154]
[1758211595161,3.2078,4608.7,4608.5,0.1252]
[1758211595366,0.76625924,4608.6,4608.5,0.1252]
[1758211595971,0.76625924,4608.6,4608.5,0.4245]
[1758211599768,0.98625924,4608.6,4608.5,0.4245]
[1758211602274,0.98625924,4608.6,4608.3,0.0216]
[1758211602582,0.76625924,4608.5,4608.4,0.2993]
[1758211605080,0.76625924,4608.5,4608.1,0.2993]
[1758211605282,3.2078,4608.2,4608.1,0.4975]
[1758211605582,4.19405924,4608.2,4608.1,0.4975]
[1758211610884,4.19405924,4608.2,4608.1,0.6924]
[1758211611481,4.19405924,4608.2,4608.1,0.2993]
[1758211612087,4.19405924,4608.2,4608.0,0.1252]
[1758211612283,0.76625924,4608.1,4608.0,0.4245]
[1758211612486,0.76625924,4608.1,4608.0,0.6227]
[1758211612782,0.76625924,4608.1,4608.0,0.8176]
[1758211613182,0.76625924,4608.1,4608.0,0.4245]
[1758211616395,0.76625924,4608.1,4607.3,0.3192]
[1758211616396,41.48840841,4608.1,4607.3,0.3192]
[1758211616596,3.2078,4607.4,4607.1,0.3192]
[1758211616784,41.78625924,4607.3,4607.1,0.3192]
[1758211616991,0.76625924,4607.2,4607.1,0.3192]
[1758211618089,0.76625924,4607.2,4606.1,0.3192]
[1758211618090,4.98330925,4607.2,4606.1,0.3192]
[1758211618284,3.2078,4606.2,4606.1,0.3192]
[1758211618489,4.19405924,4606.2,4606.1,0.3192]
[1758211618689,4.19405924,4606.2,4605.7,0.3192]
[1758211618690,48.99405924,4606.2,4605.7,0.3192]
[1758211618884,48.99405924,4606.2,4605.1,0.3192]
[1758211618885,0.76625924,4606.1,4605.1,0.3192]
[1758211619096,3.2078,4605.2,4605.1,0.3192]
[1758211619291,4.19405924,4605.2,4605.1,0.3192]
[1758211620798,4.19405924,4605.2,4605.0,0.1272]
[1758211620995,0.76625924,4605.1,4605.0,0.4464]
[1758211621193,0.76625924,4605.1,4604.5,0.4464]
[1758211621384,3.2078,4604.6,4604.5,0.4464]
[1758211621586,4.19405924,4604.6,4604.5,0.4464]
[1758211622399,44.99405924,4604.6,4604.5,0.4464]
[1758211622900,44.77405924,4604.6,4604.5,0.8377]
[1758211623194,44.2278,4604.6,4604.5,0.8377]
[1758211623696,3.4278,4604.6,4604.5,0.8377]
[1758211624699,3.4278,4604.6,4604.1,0.3192]
[1758211625000,0.76429021,4604.5,4604.0,0.1272]
[1758211625202,3.2078,4604.1,4604.0,0.4464]
[1758211625389,4.19209021,4604.1,4604.0,0.4464]
[1758211625696,8.19209021,4604.1,4603.6,0.33]
[1758211625994,0.76429021,4604.0,4603.6,0.33]
[1758211626198,0.98429021,4603.9,4603.6,0.33]
[1758211626389,0.52629457,4603.8,4603.7,0.292]
[1758211626591,0.98312098,4603.8,4603.6,0.33]
[1758211626792,0.22,4603.8,4603.6,0.33]
[1758211626991,0.22,4603.8,4603.7,0.292]
[1758211627188,0.74560532,4603.8,4603.7,0.292]
[1758211627405,0.98326404,4603.8,4603.7,0.292]
[1758211628097,0.45765872,4603.8,4603.7,0.5022]
[1758211628596,40.8,4604.0,4603.9,0.4039]
[1758211628800,41.02,4604.0,4603.9,0.6959]
[1758211629002,41.25739955,4604.0,4603.9,0.5022]
[1758211629202,41.25739955,4604.0,4603.9,0.292]
[1758211629411,41.7822396,4604.0,4603.9,0.292]
[1758211629610,41.7822396,4604.0,4603.6,0.622]
[1758211629911,0.7622396,4603.9,4603.6,0.33]
[1758211630099,0.9822396,4603.8,4603.6,0.33]
[1758211630301,0.7622396,4603.7,4603.6,0.33]
[1758211631104,4.7622396,4603.7,4603.4,0.00325609]
[1758211631307,3.2078,4603.5,4603.0,0.4192]
[1758211631505,0.9822396,4603.4,4603.0,0.1272]
[1758211631707,0.7622396,4603.3,4602.9,0.0217]
[1758211632006,3.2078,4603.0,4602.5,0.3374]
[1758211632312,0.9822396,4602.9,4602.6,0.2102]
[1758211632511,0.7622396,4602.8,4602.7,0.5022]
[1758211632812,41.5622396,4602.8,4602.7,0.5022]
[1758211633215,40.8,4602.8,4602.7,0.5022]
[1758211634308,41.03518434,4602.8,4602.7,0.5022]
[1758211635014,40.8,4602.8,4602.7,0.6959]
[1758211635313,3.2078,4603.0,4602.8,0.292]
[1758211635508,0.22,4602.9,4602.8,0.6959]
[1758211635714,0.45518502,4602.9,4602.8,0.6959]
[1758211636107,0.97813361,4602.9,4602.8,0.6959]
[1758211636904,0.97813361,4602.9,4602.8,0.5022]
[1758211637312,0.97813361,4602.9,4602.8,0.6959]
[1758211638614,0.45518502,4602.9,4602.8,0.6959]
[1758211639007,0.23518502,4602.9,4602.8,0.6959]
[1758211639208,0.97848859,4602.9,4602.8,0.6959]
[1758211641309,0.97848859,4602.9,4602.8,0.292]
[1758211641509,40.18248859,4602.9,4602.5,0.1272]
[1758211641711,0.75848859,4602.8,4602.5,0.1272]
[1758211641911,41.77948859,4602.7,4602.5,0.4192]
[1758211642118,0.75848859,4602.6,4602.5,0.1272]
[1758211642621,0.75848859,4602.6,4602.5,0.4192]
[1758211643118,0.75848859,4602.6,4602.5,0.6294]
[1758211644714,0.75848859,4602.6,4602.5,0.8231]
[1758211645424,2.31463776,4602.6,4602.5,0.8231]
[1758211646414,0.1987,4602.5,4602.0,0.1192]
[1758211646618,0.8343,4602.5,4602.4,0.2102]
[1758211646920,5.02765948,4602.5,4602.4,0.2102]
[1758211647219,5.02765948,4602.5,4601.5,0.1192]
[1758211647421,3.2078,4601.8,4601.7,0.4039]
[1758211647713,4.19335948,4601.8,4601.7,0.4039]
[1758211647915,4.70515948,4601.8,4601.7,0.4039]
[1758211648115,4.90805948,4601.8,4600.9,3.2078]
[1758211648318,0.5118,4601.2,4601.1,0.62122999]
[1758211648517,0.96991471,4601.2,4601.1,0.6959]
[1758211648716,1.49735948,4601.2,4601.1,0.6959]
[1758211649316,1.70025948,4601.2,4601.1,0.4039]
[1758211649515,1.70025948,4601.2,4601.1,0.6959]